lending/lending_fUSD_20241005
["ID","MTS","AMOUNT","RATE_DAILY","PERIOD"]
[339875098,1728106242919,-318.036336,0.00045,60]
[339875099,1728106242997,-428.63424355,0.00045,60]
[339875100,1728106243009,-402.265,0.00045,60]
[339875101,1728106243165,-102852.59079216,0.00045,60]
[339875105,1728106246086,-1160.32076868,0.00016652,2]
[339875106,1728106246095,-1086.27991732,0.00044,60]
[339875134,1728107432017,-550.82341854,0.00010859,2]
[339875137,1728107432028,-337.92824235,0.00010859,2]
[339875139,1728107432038,-164.09,0.00010959,2]
[339875141,1728107432047,-155.35,0.00010959,2]
[339875143,1728107432055,-888.75166088,0.00011045,2]
[339875144,1728107432064,-250.0,0.00013,2]
[339875145,1728107432073,-724.0,0.000178,2]
[339875146,1728107432082,-155.35,0.00026712,2]
[339875147,1728107432101,-3400.0,0.0004,90]
[339875148,1728107432110,-150.83,0.00041017,2]
[339875149,1728107432119,-499.99,0.00041017,2]
[339875150,1728107432248,-1494.0,0.000417,7]
[339875152,1728107432259,-250.0,0.00042271,2]
[339875153,1728107432270,-250.0,0.00042451,2]
[339875154,1728107432279,-250.0,0.00042462,120]
[339875155,1728107432288,-155.35,0.00042466,2]
[339875156,1728107432298,-1511.85,0.00042488,2]
[339875157,1728107432308,-23890.0,0.00042627,2]
[339875158,1728107432319,-157.0,0.00042697,2]
[339875159,1728107432329,-170.6,0.00042967,120]
[339875160,1728107432340,-1000.0,0.00043,120]
[339875161,1728107432350,-1000.0,0.000431,7]
[339875162,1728107432359,-1043.67309921,0.0004312,10]
[339875163,1728107432368,-150.83,0.00043407,2]
[339875164,1728107432377,-200.0,0.00043514,2]
[339875165,1728107432386,-199.858,0.00043582,68]
[339875166,1728107432396,-515.6669376,0.00043793,10]
[339875167,1728107432405,-500.0,0.00043793,2]
[339875168,1728107432415,-500.0,0.00043793,10]
[339875169,1728107432425,-2500.0,0.000439,2]
[339875170,1728107432435,-870.24057651,0.000439,28]
[339875171,1728107432447,-208327.89152597,0.00044,120]
[339875172,1728107432459,-440.72382921,0.00044,120]
[339875173,1728107432471,-867.03406242,0.00044,120]
[339875178,1728107438212,-888.75166088,0.0001123,2]
[339875179,1728107438222,-63537.20966206,0.00044,120]
[339875180,1728107438268,-11908.14092034,0.00044,120]
[339875181,1728107438277,-913.72008268,0.00044,60]
[339875182,1728107438286,-870.24057651,0.00044043,28]
[339875183,1728107438295,-1851.85288159,0.00044122,15]
[339875184,1728107438304,-870.24057651,0.00044186,28]
[339875185,1728107438313,-1851.85288159,0.00044233,15]
[339875186,1728107438322,-870.24057651,0.00044329,28]
[339875187,1728107438332,-1851.85288159,0.00044344,15]
[339875188,1728107438341,-1851.85288159,0.00044456,15]
[339875189,1728107438350,-870.24057651,0.00044471,28]
[339875190,1728107438359,-1000.0,0.000445,7]
[339875191,1728107438368,-1851.85288159,0.00044567,15]
[339875192,1728107438377,-870.24057651,0.00044614,28]
[339875193,1728107438387,-500.0,0.00044677,120]
[339875194,1728107438396,-199.30226172,0.00044677,120]
[339875195,1728107438405,-500.0,0.00044677,120]
[339875196,1728107438414,-443.71862197,0.00044677,120]
[339875197,1728107438423,-1851.85288159,0.00044678,15]
[339875198,1728107438432,-870.24057651,0.00044757,28]
[339875199,1728107438442,-500.0,0.00044772,2]
[339875200,1728107438451,-500.0,0.00044772,2]
[339875201,1728107438460,-500.0,0.00044772,2]
[339875202,1728107438469,-500.0,0.00044772,2]
[339875203,1728107438478,-500.0,0.00044772,2]
[339875204,1728107438487,-396.9957,0.00044772,2]
[339875205,1728107438495,-1851.85288159,0.00044789,15]
[339875206,1728107438506,-9919.11231611,0.00044796,120]
[339875207,1728107438515,-12392.8775,0.000448,2]
[339875208,1728107438524,-262.0196,0.000448,2]
[339875209,1728107438533,-1000.0,0.000448,2]
[339875210,1728107438543,-500.0,0.000448,2]
[339875211,1728107438555,-384.833,0.000448,2]
[339875212,1728107438565,-164.98,0.0004489,2]
[339875213,1728107438574,-245000.0,0.000449,2]
[339875214,1728107438583,-153.19749477,0.000449,120]
[339875215,1728107438603,-5126.7793,0.000449,2]
[339875216,1728107438612,-32320.2417,0.000449,2]
[339875217,1728107438621,-88888.0,0.000449,120]
[339875218,1728107438630,-1851.85288159,0.000449,15]
[339875219,1728107438639,-165.46158604,0.000449,120]
[339875220,1728107438648,-165.96,0.000449,120]
[339875221,1728107438657,-181.38108741,0.000449,120]
[339875222,1728107438666,-181.38108741,0.000449,120]
[339875223,1728107438675,-181.88,0.000449,120]
[339875224,1728107438684,-169.27423204,0.000449,120]
[339875225,1728107438693,-169.27423204,0.000449,120]
[339875226,1728107438703,-169.77,0.000449,120]
[339875227,1728107438712,-870.24057651,0.000449,28]
[339875228,1728107438721,-446.67037272,0.000449,2]
[339875229,1728107438730,-500.0,0.00044931,120]
[339875230,1728107438739,-500.0,0.00044931,120]
[339875231,1728107438747,-500.0,0.00044931,120]
[339875232,1728107438756,-500.0,0.00044931,120]
[339875233,1728107438765,-500.0,0.00044931,120]
[339875234,1728107438775,-500.0,0.00044931,120]
[339875235,1728107438784,-500.0,0.00044931,120]
[339875236,1728107438793,-500.0,0.00044931,120]
[339875237,1728107438802,-500.0,0.00044931,120]
[339875238,1728107438811,-500.0,0.00044931,120]
[339875239,1728107438820,-500.0,0.00044931,120]
[339875240,1728107438829,-500.0,0.00044931,120]
[339875241,1728107438840,-500.0,0.00044931,120]
[339875242,1728107438849,-500.0,0.00044931,120]
[339875243,1728107438857,-500.0,0.00044931,120]
[339875244,1728107438866,-500.0,0.00044931,120]
[339875245,1728107438875,-500.0,0.00044931,120]
[339875246,1728107438883,-500.0,0.00044931,120]
[339875247,1728107438893,-500.0,0.00044931,120]
[339875248,1728107438901,-374.22127899,0.00044931,120]
[339875249,1728107438910,-500.0,0.00044931,120]
[339875250,1728107438919,-500.0,0.00044931,120]
[339875251,1728107438928,-500.0,0.00044931,120]
[339875252,1728107438937,-500.0,0.00044931,120]
[339875253,1728107438946,-500.0,0.00044931,120]
[339875254,1728107438955,-500.0,0.00044931,120]
[339875255,1728107438964,-500.0,0.00044931,120]
[339875256,1728107438973,-499.7964,0.00044931,120]
[339875257,1728107438982,-500.0,0.00044931,120]
[339875258,1728107438991,-500.0,0.00044931,120]
[339875259,1728107439002,-500.0,0.00044931,120]
[339875260,1728107439011,-500.0,0.00044931,120]
[339875261,1728107439021,-500.0,0.00044931,120]
[339875262,1728107439030,-500.0,0.00044931,120]
[339875263,1728107439039,-500.0,0.00044931,120]
[339875264,1728107439049,-500.0,0.00044931,120]
[339875265,1728107439058,-500.0,0.00044931,120]
[339875266,1728107439067,-500.0,0.00044931,120]
[339875267,1728107439076,-500.0,0.00044931,120]
[339875268,1728107439085,-500.0,0.00044931,120]
[339875269,1728107439095,-500.0,0.00044931,120]
[339875270,1728107439104,-500.0,0.00044931,120]
[339875271,1728107439113,-500.0,0.00044931,120]
[339875272,1728107439122,-500.0,0.00044931,120]
[339875273,1728107439131,-156.28116888,0.00044931,120]
[339875274,1728107439140,-500.0,0.00044931,120]
[339875275,1728107439150,-500.0,0.00044931,120]
[339875276,1728107439159,-500.0,0.00044931,120]
[339875277,1728107439168,-523.72990484,0.00044931,120]
[339875278,1728107439177,-500.0,0.00044931,120]
[339875279,1728107439186,-500.0,0.00044931,120]
[339875280,1728107439196,-500.0,0.00044931,120]
[339875281,1728107439205,-500.0,0.00044931,120]
[339875282,1728107439214,-500.0,0.00044931,120]
[339875283,1728107439224,-499.59472034,0.00044931,120]
[339875284,1728107439233,-606.92,0.00044931,120]
[339875285,1728107439242,-606.92,0.00044931,120]
[339875286,1728107439252,-606.92,0.00044931,120]
[339875287,1728107439261,-500.0,0.00044931,120]
[339875288,1728107439270,-500.0,0.00044931,120]
[339875289,1728107439279,-500.0,0.00044931,120]
[339875290,1728107439288,-500.0,0.00044931,120]
[339875291,1728107439298,-500.0,0.00044931,120]
[339875292,1728107439307,-500.0,0.00044931,120]
[339875293,1728107439316,-534.0,0.00044945,2]
[339875294,1728107439325,-534.0,0.00044945,2]
[339875295,1728107439335,-534.0,0.00044945,2]
[339875296,1728107439344,-534.05,0.00044945,2]
[339875297,1728107439354,-1068.0,0.00044945,2]
[339875298,1728107439363,-534.05,0.00044945,2]
[339875299,1728107439372,-150.0,0.00044986,30]
[339875300,1728107439381,-150.0,0.00044986,30]
[339875301,1728107439390,-500.0,0.00044999,120]
[339875302,1728107439399,-500.0,0.00044999,120]
[339875303,1728107439408,-500.0,0.00044999,120]
[339875304,1728107439418,-500.0,0.00044999,120]
[339875305,1728107439428,-512.1856,0.00044999,120]
[339875306,1728107439438,-500.0,0.00044999,120]
[339875307,1728107439447,-500.0,0.00044999,120]
[339875308,1728107439456,-500.79482199,0.00044999,120]
[339875309,1728107439465,-500.0,0.00044999,120]
[339875310,1728107439474,-500.0,0.00044999,120]
[339875311,1728107439483,-500.0,0.00044999,120]
[339875312,1728107439492,-503.3926577,0.00044999,120]
[339875313,1728107439502,-500.0,0.00044999,120]
[339875314,1728107439511,-500.0,0.00044999,120]
[339875315,1728107439521,-500.0,0.00044999,120]
[339875316,1728107439529,-500.0,0.00044999,120]
[339875317,1728107439538,-501.03893,0.00044999,120]
[339875318,1728107439552,-500.0,0.00044999,120]
[339875319,1728107439561,-500.0,0.00044999,120]
[339875320,1728107439570,-500.0,0.00044999,120]
[339875321,1728107439579,-500.0,0.00044999,120]
[339875322,1728107439591,-500.0,0.00044999,120]
[339875323,1728107439600,-500.0,0.00044999,120]
[339875324,1728107439609,-502.31579907,0.00044999,120]
[339875325,1728107439619,-606.92,0.00044999,120]
[339875326,1728107439628,-606.92,0.00044999,120]
[339875327,1728107439638,-606.92,0.00044999,120]
[339875328,1728107439647,-606.92,0.00044999,120]
[339875329,1728107439656,-606.92,0.00044999,120]
[339875330,1728107439665,-606.92,0.00044999,120]
[339875331,1728107439674,-606.92,0.00044999,120]
[339875332,1728107439684,-606.92,0.00044999,120]
[339875333,1728107439693,-606.92,0.00044999,120]
[339875334,1728107439702,-606.92,0.00044999,120]
[339875335,1728107439711,-606.92,0.00044999,120]
[339875336,1728107439720,-606.92,0.00044999,120]
[339875337,1728107439729,-606.92,0.00044999,120]
[339875338,1728107439738,-606.92,0.00044999,120]
[339875339,1728107439747,-606.92,0.00044999,120]
[339875341,1728107439756,-606.92,0.00044999,120]
[339875343,1728107439765,-606.92,0.00044999,120]
[339875345,1728107439775,-606.92,0.00044999,120]
[339875346,1728107439784,-606.92,0.00044999,120]
[339875347,1728107439793,-606.92,0.00044999,120]
[339875348,1728107439802,-606.9228666,0.00044999,120]
[339875349,1728107439811,-500.0,0.00044999,120]
[339875350,1728107439820,-500.0,0.00044999,120]
[339875351,1728107439829,-500.0,0.00044999,120]
[339875352,1728107439840,-500.0,0.00044999,120]
[339875353,1728107439849,-500.0,0.00044999,120]
[339875354,1728107439858,-500.0,0.00044999,120]
[339875355,1728107439867,-500.0,0.00044999,120]
[339875356,1728107439876,-504.5496592,0.00044999,120]
[339875357,1728107439886,-473.0,0.00045,7]
[339875358,1728107439895,-6368.17329369,0.00045,61]
[339875359,1728107439904,-705513.96510018,0.00045,60]
[339875362,1728107440047,-888.75166088,0.00011416,2]
[339875363,1728107440057,-116413.15245544,0.00045,60]
[339875364,1728107440165,-1256.02869912,0.00045,60]
[339875365,1728107440176,-483.75,0.00045,60]
[339875366,1728107440188,-1555.46464797,0.00045,60]
[339875367,1728107440225,-1570.8,0.00045,60]
[339875368,1728107440286,-1076.0,0.00045,60]
[339875371,1728107443085,-2839.64033584,0.00045,60]
[339875372,1728107443197,-317.58278286,0.00045,60]
[339875373,1728107443257,-40909.22753173,0.00045,60]
[339875374,1728107443268,-8500.0,0.00045,60]
[339875375,1728107443279,-413.236763,0.00045,60]
[339875376,1728107443290,-10816.61358908,0.00045,60]
[339875377,1728107443315,-928.7057558,0.00045,60]
[339875379,1728107445999,-888.75166088,0.00011601,2]
[339875380,1728107446009,-501.0,0.00045,7]
[339875381,1728107446019,-22526.93583556,0.00045,60]
[339875382,1728107446109,-1598.575,0.00045,60]
[339875383,1728107446223,-7207.94302208,0.00045,60]
[339875384,1728107446236,-9092.71517406,0.00045,60]
[339875385,1728107446282,-1692.13433811,0.00045,60]
[339875386,1728107446294,-933.17494973,0.00045,60]
[339875387,1728107446340,-6000.0,0.00045,60]
[339875388,1728107446351,-637.7367872,0.00045,60]
[339875406,1728107855839,-1469.1067,0.00010859,2]
[339875407,1728107861587,-6221.26162616,0.00011929,2]
[339875408,1728107867062,-16404.56459104,0.00012029,2]
[339875409,1728108106502,168.75,0.00010959,2]
[339875414,1728108632250,-764.1593386,0.00016652,2]
[339875415,1728108632272,-73.8406614,0.00016652,2]
[339875416,1728108632281,-468.24890594,0.000182,2]
[339875417,1728108632439,-731.21407502,0.000182,2]
[339875418,1728108632450,-1532.300026,0.000182,2]
[339875461,1728108638264,-603.23699304,0.000182,2]
[339875462,1728108638273,-150.83,0.00041067,2]
[339875463,1728108638282,-1196.0,0.000417,7]
[339875464,1728108638292,-250.0,0.00042685,120]
[339875465,1728108638449,-170.6,0.00042737,120]
[339875466,1728108638462,-4994.15,0.00042737,60]
[339875467,1728108638472,-1903.65,0.00042754,2]
[339875468,1728108638481,-250.0,0.00042816,2]
[339875469,1728108638490,-821.53300696,0.00042858,2]
[339875470,1728108638504,-71.10699304,0.00042858,2]
[339875471,1728108638514,-2393.55,0.00042858,2]
[339875472,1728108638523,-751.54655895,0.00042986,10]
[339875473,1728108638534,-491.77976376,0.00042986,10]
[339875474,1728108638553,-955.27057878,0.00042986,10]
[339875502,1728108640440,-264.37412651,0.00042986,10]
[339875504,1728108643507,-355.512,0.00042986,10]
[339875505,1728108643519,-2244.826972,0.00042986,10]
[339875506,1728108643528,-1825.78,0.00042986,2]
[339875507,1728108643538,-1005.0,0.00043,35]
[339875508,1728108643547,-1000.0,0.00043,35]
[339875509,1728108643556,-1000.0,0.00043,35]
[339875510,1728108643565,-508.0,0.00043,35]
[339875511,1728108643576,-1896.41,0.00043075,2]
[339875512,1728108643585,-240.8416,0.000437,2]
[339875513,1728108643595,-4588.0911,0.000437,2]
[339875514,1728108643604,-2500.0,0.000437,2]
[339875515,1728108643613,-161.97359333,0.000437,28]
[339875516,1728108643622,-150.83,0.00043755,2]
[339875517,1728108643632,-1120.14136991,0.0004379,15]
[339875518,1728108643641,-216.605,0.000438,68]
[339875519,1728108643653,-172.434,0.000438,68]
[339875520,1728108643663,-55000.3707472,0.000438,2]
[339875539,1728108646296,-29415.05304883,0.000438,2]
[339875541,1728108646308,-48849.01266839,0.000438,2]
[339875553,1728108646494,-5402.35626973,0.000438,2]
[339875554,1728108646507,-376.87925389,0.000438,2]
[339875555,1728108646519,-12023.18308105,0.000438,2]
[339875556,1728108646530,-16739.17611555,0.000438,2]
[339875561,1728109147755,167.38,0.00010959,2]
[339875562,1728109508133,49663.87,0.00011,2]
[339875563,1728109508163,50000.0,0.00011,2]
[339875564,1728109508194,33595.43540896,0.00011,2]
[339875565,1728109508224,43778.73837384,0.00011,2]
[339875566,1728109508254,48530.8933,0.00011,2]
[339875568,1728109553470,4311.0,6.94e-05,2]
[339875569,1728109553493,15876.57467009,6.94e-05,2]
[339875578,1728109717384,30170.28715136,0.0001,2]
[339875592,1728109809617,-2482.0,0.0001089,2]
[339875593,1728109809639,-169.56610551,0.000109,2]
[339875594,1728109809661,-300.0,0.00010989,2]
[339875595,1728109809682,-13001.4502282,0.0001099,2]
[339875596,1728109809703,-150.0,0.00010999,2]
[339875597,1728109809728,-501.17066642,0.00010999,2]
[339875598,1728109809748,-500.0,0.00010999,2]
[339875599,1728109809769,-500.0,0.00010999,2]
[339875600,1728109809911,-334.46771975,0.00010999,2]
[339875601,1728109809937,-445061.34528012,0.00011,2]
[339875614,1728109832325,-155.35,0.00010959,2]
[339875615,1728109832335,-500.0,0.00010973,2]
[339875616,1728109832345,-14.59125223,0.00010973,2]
[339875617,1728109832356,-489.38470423,0.00010973,2]
[339875618,1728109832366,-157.97352863,0.0001099,2]
[339875619,1728109832376,-12377.01970386,0.00011,2]
[339875620,1728109832387,-36090.77417723,0.00011,2]
[339875621,1728109832400,-13698.38536391,0.00011,2]
[339875622,1728109832410,-684.71908266,0.00011,2]
[339875623,1728109832421,-307.8334,0.00011,2]
[339875624,1728109832434,-1226.69547071,0.00011,2]
[339875625,1728109832445,-8409.06848087,0.00011,2]
[339875626,1728109832553,-251.40209908,0.00011,2]
[339875627,1728109832563,-11464.75136673,0.00011,2]
[339875628,1728109832572,-47560.43673718,0.00011,2]
[339875629,1728109832583,-2131.03440012,0.00011,2]
[339875630,1728109832594,-19169.88038049,0.00011,2]
[339875631,1728109832605,-2999.0,0.00011,2]
[339875632,1728109832616,-270.26587227,0.00011,2]
[339875633,1728109832627,-3148.86507622,0.00011,2]
[339875634,1728109832638,-1758.98083205,0.00011,2]
[339875635,1728109832649,-1090.15409173,0.00011,2]
[339875636,1728109832661,-500.0,0.00011,2]
[339875637,1728109832672,-284909.67323849,0.00011,2]
[339875638,1728109832683,-56435.42240495,0.00011,2]
[339875639,1728109832694,-5149.76122802,0.00011,2]
[339875640,1728109832705,-915.29707946,0.00011,2]
[339875641,1728109832716,-900.0,0.00011,2]
[339875642,1728109832727,-913.26386626,0.00011,2]
[339875643,1728109832738,-909.82345012,0.00011,2]
[339875644,1728109832749,-1157.16,0.00011,2]
[339875645,1728109832760,-387.02289021,0.00011,2]
[339875646,1728109838471,-313.999999,0.00011,2]
[339875647,1728109838489,-1015.07120255,0.00011,2]
[339875648,1728109838581,-2134.90469622,0.00011,2]
[339875649,1728109838592,-551.09530478,0.00011,2]
[339875651,1728109840340,-6843.31925638,0.00011,2]
[339875652,1728109840435,-363.72999999,0.00011,2]
[339875653,1728109840446,-1710.19466749,0.00011,2]
[339875662,1728109843743,-6415.128,0.00011,2]
[339875666,1728109846654,-43359.15692486,0.00011,2]
[339875667,1728109952151,-761533.7051616,0.00011,2]
[339875668,1728110736861,10000.0,0.0002,30]
[339875671,1728110977503,-28440.05314816,0.00010859,2]
[339875672,1728110977531,-163.31,0.00010959,2]
[339875673,1728110977557,-500.0,0.00011,2]
[339875674,1728110977584,-500.0,0.00011,2]
[339875675,1728110977611,-741.0,0.00011,2]
[339875684,1728111031491,-300.0,0.00017499,2]
[339875685,1728111031500,-687.0,0.000175,2]
[339875686,1728111031509,-2699.99397903,0.000175,2]
[339875687,1728111031521,-866.00602097,0.000175,2]
[339875689,1728111031530,-300.0,0.00025603,2]
[339875690,1728111031539,-1393.42,0.00025604,2]
[339875692,1728111031548,-40.35342293,0.00025604,2]
[339875694,1728111031559,-1194.43657707,0.00025604,2]
[339875695,1728111031568,-150.99,0.00025604,2]
[339875696,1728111031578,-150.99,0.00025604,2]
[339875698,1728111031587,-879.2,0.00025604,2]
[339875700,1728111031596,-7176.14,0.00025604,2]
[339875701,1728111031605,-166.8,0.00025604,2]
[339875703,1728111031614,-218.659,0.00025609,10]
[339875704,1728111031626,-172.435,0.00025609,10]
[339875706,1728111031635,-499.99,0.00025609,2]
[339875708,1728111031644,-299.99,0.00025609,7]
[339875709,1728111031653,-163.5623866,0.00026773,2]
[339875710,1728111031662,-358.9298351,0.00029,60]
[339875711,1728111031671,-153.05,0.00030254,2]
[339875712,1728111031680,-250.0,0.00031091,2]
[339875713,1728111031689,-556.45186923,0.00031226,2]
[339875714,1728111031698,-12324.99475026,0.00031226,30]
[339875715,1728111031707,-7334.1579,0.00031226,30]
[339875716,1728111031716,-859.0,0.00031226,30]
[339875717,1728111031725,-1000.0,0.00031226,120]
[339875718,1728111031734,-1000.0,0.00031226,120]
[339875719,1728111031744,-1000.0,0.00031226,120]
[339875720,1728111031752,-1000.0,0.00031226,120]
[339875721,1728111031762,-1000.0,0.00031226,120]
[339875722,1728111031771,-597.62036353,0.00031226,120]
[339875723,1728111031780,-200.0,0.0003149,2]
[339875724,1728111031789,-446.32,0.0003152,2]
[339875725,1728111031798,-23900.0,0.00031693,2]
[339875726,1728111031807,-250.0,0.0003181,2]
[339875727,1728111031816,-1343.86,0.00031897,2]
[339875728,1728111031826,-170.6,0.00032264,120]
[339875729,1728111031835,-250.0,0.00032494,2]
[339875730,1728111031844,-153.05,0.00032644,2]
[339875731,1728111031852,-170.59,0.00032903,2]
[339875732,1728111031861,-170.59,0.00032985,2]
[339875733,1728111031997,-170.59,0.00033067,2]
[339875735,1728111032007,-1000.0,0.000334,2]
[339875737,1728111032016,-193.12,0.00034536,2]
[339875740,1728111032026,-153.05,0.00035034,2]
[339875742,1728111032035,-93051.0,0.00035226,120]
[339875743,1728111032044,-180.0,0.00035315,120]
[339875744,1728111032053,-163.66,0.00035934,120]
[339875745,1728111032063,-155.35,0.00036164,2]
[339875746,1728111032072,-153.05,0.00037423,2]
[339875747,1728111032081,-1000.0,0.00037575,2]
[339875748,1728111032091,-293.74,0.000383,2]
[339875749,1728111032100,-60753.35710626,0.00039081,7]
[339875750,1728111032115,-70014.69803474,0.00039081,7]
[339875751,1728111032124,-2346.79218879,0.00039713,15]
[339875752,1728111032133,-153.05,0.00039813,2]
[339875753,1728111032143,-10467.76064647,0.0004,30]
[339875754,1728111032154,-1230.1119519,0.0004,30]
[339875755,1728111032165,-5515.55103645,0.0004,30]
[339875756,1728111032176,-2683.18062,0.0004,30]
[339875757,1728111032187,-1096.40924013,0.0004,30]
[339875758,1728111032198,-521.124372,0.0004,30]
[339875759,1728111032209,-595.5625,0.0004,30]
[339875760,1728111032220,-426.32802667,0.0004,30]
[339875761,1728111032232,-251.03914311,0.0004,30]
[339875762,1728111032245,-2246.92236569,0.0004,30]
[339875763,1728111032258,-2072.75435249,0.0004,30]
[339875764,1728111032270,-1390.89940899,0.0004,30]
[339875765,1728111032283,-1752.96961553,0.0004,30]
[339875766,1728111032296,-9497.47245198,0.0004,30]
[339875767,1728111032307,-537.31713837,0.0004,30]
[339875768,1728111032319,-2700.91863559,0.0004,30]
[339875769,1728111032330,-860.97154633,0.0004,30]
[339875770,1728111032341,-1373.45409128,0.0004,30]
[339875771,1728111032352,-2666.29867666,0.0004,30]
[339875772,1728111032364,-377.95418036,0.0004,30]
[339875773,1728111032373,-559.76710034,0.00040137,120]
[339875774,1728111032384,-502.92289966,0.00040137,120]
[339875775,1728111032393,-362.39327163,0.00040289,15]
[339875776,1728111032404,-445.64999998,0.00040289,15]
[339875777,1728111032415,-502.90722895,0.00040289,15]
[339875783,1728111037745,-521.5996,0.00040289,15]
[339875784,1728111037756,-411.66742066,0.00040289,15]
[339875785,1728111037770,-102.57466753,0.00040289,15]
[339875786,1728111037779,-151.29533247,0.0004033,120]
[339875787,1728111037793,-19.30466753,0.0004033,120]
[339875788,1728111037804,-981.58109189,0.00040866,15]
[339875793,1728111039533,-788.30346052,0.00040866,15]
[339875794,1728111039780,-576.90763634,0.00040866,15]
[339875795,1728111039789,-81.09236366,0.00041014,120]
[339875796,1728111039800,-452.95763634,0.00041014,120]
[339875797,1728111039811,-30.43541254,0.00041014,120]
[339875798,1728111039822,-364.02000001,0.00041014,120]
[339875799,1728111039833,-139.59458745,0.00041014,120]
[339875800,1728111039843,-534.0,0.00041014,120]
[339875801,1728111039852,-118.9345417,0.00041442,15]
[339875802,1728111041974,-2227.85764705,0.00041442,15]
[339875803,1728111041984,-2346.79218875,0.00042018,15]
[339875804,1728111041994,-156.7581642,0.00042102,28]
[339875805,1728111042006,-69.11907333,0.00042102,28]
[339875806,1728111042015,-153.05,0.00042203,2]
[339875807,1728111042025,-257.36,0.0004231,120]
[339875808,1728111042034,-225.87723753,0.00042502,28]
[339875809,1728111042043,-2346.79218875,0.00042595,15]
[339875810,1728111042052,-4051.0,0.00042675,117]
[339875811,1728111042062,-538.55,0.00042844,120]
[339875812,1728111042071,-534.0,0.00042844,120]
[339875813,1728111042080,-225.87723753,0.00042901,28]
[339875814,1728111042090,-675.0,0.00043,37]
[339875815,1728111042099,-260.0,0.00043,120]
[339875816,1728111042108,-2346.79218875,0.00043171,15]
[339875817,1728111042117,-1000.0,0.0004324,2]
[339875818,1728111042126,-225.87723753,0.00043301,28]
[339875819,1728111042136,-2004.75,0.000437,120]
[339875820,1728111042147,-225.87723753,0.00043701,28]
[339875821,1728111042157,-2346.79218875,0.00043747,15]
[339875822,1728111042166,-200.0,0.000438,7]
[339875823,1728111042175,-500.0,0.00044,120]
[339875824,1728111042184,-8291.11957684,0.00044,30]
[339875825,1728111042194,-225.87723753,0.00044101,28]
[339875826,1728111042203,-446.32,0.00044128,2]
[339875827,1728111042212,-200.0,0.00044238,7]
[339875828,1728111042223,-2346.79218875,0.00044324,15]
[339875829,1728111042234,-225.87723753,0.000445,28]
[339875830,1728111042245,-153.05,0.00044592,2]
[339875831,1728111042255,-200.0,0.0004468,7]
[339875832,1728111042265,-2095.9460861,0.0004489,7]
[339875833,1728111042277,-158.74539217,0.00044898,120]
[339875834,1728111042286,-2030.31136093,0.000449,2]
[339875835,1728111042296,-347.014156,0.000449,17]
[339875836,1728111042309,-160.78836512,0.000449,20]
[339875837,1728111042320,-338.46791679,0.000449,20]
[339875838,1728111042330,-225.87723753,0.000449,28]
[339875839,1728111042339,-265.13,0.000449,120]
[339875840,1728111042349,-217.60741363,0.000449,120]
[339875841,1728111042359,-218.1,0.000449,120]
[339875842,1728111042369,-203.07950165,0.000449,120]
[339875843,1728111042380,-203.57,0.000449,120]
[339875845,1728111042389,-3449.39164277,0.000449,2]
[339875846,1728111042398,-392.95514373,0.000449,2]
[339875847,1728111042409,-2346.79218875,0.000449,15]
[339875848,1728111042419,-88888.0,0.000449,120]
[339875849,1728111042428,-838.37843444,0.00044921,7]